[Event "46th Barbera del Valles Open-A 2024"]
[Site "Barbera del Valles"]
[Date "2024.07.07"]
[Round "4.1"]
[White "Cuartas, Jaime Alexander"]
[Black "Reyan"]
[Result "1-0"]
[ECO "B50"]
[WhiteElo "2519"]
[BlackElo "2022"]
[Annotator "TA"]
[PlyCount "163"]
[EventDate "2024.06.25"]
[EventType "swiss"]
[EventCountry "ESP"]
[SourceTitle "playchess.com"]
[Source "ChessBase"]
[SourceQuality "1"]
[TimeControl "5400+30"]

{[%evp 9,163,36,68,72,57,41,41,21,33,12,26,18,41,26,45,40,62,66,92,84,98,102,107,90,109,79,77,83,95,97,108,96,111,103,87,53,83,77,99,71,159,152,204,192,297,300,272,192,337,214,266,245,248,247,251,254,246,214,225,228,193,164,179,154,122,153,397,12,12,20,176,65,66,64,76,65,72,79,256,144,259,174,162,93,88,34,35,14,14,14,23,16,16,6,68,0,0,0,43,27,9,-25,-4,-39,0,0,10,3,4,3,4,-8,-8,-8,-8,-8,-8,-8,-8,-252,0,0,113,109,77,77,77,77,1045,360,327,327,2785,319,3260,319,319,319,319,319,1822,929,929,319,29972,29974,29977,29978,29978,29979,29979,29977,29984,29985,29983,29980]} 1. e4 {[%emt 0:00:02]} c5 {[%emt 0:00:18]} 2. Nf3 {[%emt 0:00:05]} d6 {[%emt 0:00:09]} 3. Bc4 {[%emt 0:00:10]} Nc6 {[%emt 0:01:14]} 4. O-O {[%emt 0:00:07]} g6 {[%emt 0:01:06]} 5. c3 {[%emt 0:00:06]} e6 {[%emt 0:15:24]} 6. d4 {[%emt 0:00:08]} cxd4 {[%emt 0:00:08]} 7. Nxd4 {[%emt 0:00:52]} a6 {[%emt 0:03:58]} 8. Nf3 {[%emt 0:00:17] White is slightly better.} Bg7 {[%emt 0:01:26]} 9. Qe2 {[%emt 0:01:35]} Nge7 {[%emt 0:01:23]} 10. Rd1 {[%emt 0:00:10]} O-O {[%emt 0:02:20]} 11. Bf4 {[%emt 0:03:15]} e5 {[%emt 0:00:30]} 12. Be3 {[%emt 0:02:37]} Qc7 {[%emt 0:03:10]} 13. a4 {[%emt 0:07:30]} Be6 {[%emt 0:14:36]} 14. Na3 {[%emt 0:05:32]} Rad8 {[%emt 0:01:35]} 15. Bxe6 {[%emt 0:01:08]} fxe6 {[%emt 0:00:02]} 16. Ng5 {[%emt 0:10:16]} Rf6 {[%emt 0:01:01]} 17. Qc4 {[%emt 0:09:49]} Qc8 {[%emt 0:15:58]} 18. Bb6 {[%emt 0:01:22] White has more active pieces.} d5 {[%emt 0:00:23]} 19. Qa2 {[%emt 0:04:03]} Re8 {[%emt 0:02:16]} 20. a5 {[%emt 0:00:26][%cal Og5e6]} Nd8 {[%emt 0:05:22]} (20... h6 21. Nxe6 Qxe6 22. exd5 Nxd5 23. Qxd5 $18) 21. exd5 {[%emt 0:10:56]} exd5 {[%emt 0:00:11]} 22. c4 {[%emt 0:00:03]} d4 {[%emt 0:02:58] ...Qf5 is the strong threat.} 23. c5+ {[%emt 0:00:06]} Nf7 {[%emt 0:02:15]} 24. Ne4 {[%emt 0:01:24]} Re6 {[%emt 0:02:39]} (24... Qd7 $142) 25. Nc4 $1 $16 {[%emt 0:00:59]} Nf5 {[%emt 0:02:27]} (25... Qc6 $16 {keeps fighting.}) 26. Ncd6 $18 {[%emt 0:00:11]} N5xd6 {[%emt 0:05:25]} (26... Qc6 $142 27. Nxe8 Rxe8) 27. cxd6 {[%emt 0:00:12]} (27. Nxd6 Nxd6 28. cxd6 Qc6 $11) 27... Bh6 {[%emt 0:02:39] Repels Rdc1} 28. Qd5 {[%emt 0:00:51] Hoping for d7.} Nxd6 {[%emt 0:05:04]} (28... Qc6 $142 29. Qxc6 bxc6) 29. Nf6+ {[%emt 0:01:10]} Kg7 {[%emt 0:02:15]} 30. Nxe8+ {[%emt 0:00:07]} Nxe8 {[%emt 0:00:07]} 31. Re1 $1 {[%emt 0:04:56]} Nf6 {[%emt 0:00:34]} 32. Qb3 {[%emt 0:00:02][%cal Ob6d4] aiming for Bxd4!} Re8 {[%emt 0:04:26]} 33. Re2 {[%emt 0:00:11]} Qd7 {[%emt 0:00:36]} 34. Rc2 {[%emt 0:03:11]} Rc8 {[%emt 0:00:02] Wards off Rc7} 35. Rxc8 {[%emt 0:01:33]} Qxc8 {[%emt 0:00:00]} 36. h3 {[%emt 0:00:58]} Qc6 {[%emt 0:02:21]} 37. Re1 {[%emt 0:02:05]} Nh5 $2 {[%emt 0:00:56]} (37... Nd5 $16) 38. Qd1 $2 {[%emt 0:10:54]} (38. Rxe5 $2 Qc1+ 39. Kh2 Qf4+ 40. Kh1 Qxe5 $19) (38. g3 $18 Be3 39. Qb4 (39. fxe3 Qf3 $11) 39... Nxg3 40. fxe3 (40. Qe7+ Kg8 $18) 40... Qh1+ 41. Kf2 Ne4+ (41... Qh2+ $2 42. Kf3 $18) 42. Ke2 Qg2+ 43. Kd3 Nf2+ 44. Kc4) 38... Nf4 $11 {[%emt 0:00:52][%csl Gf4][%cal Rc6g2]} 39. f3 {[%emt 0:01:57]} (39. Rxe5 $2 Qxg2#) 39... Qd5 {[%emt 0:00:57]} (39... Nd5 $1 $11 {and Black is okay.}) 40. Qc2 {[%emt 0:00:24]} ({Only move:} 40. Bc7 $18 d3 41. Bxe5+ Kg8 42. Bxf4 Bxf4 43. Qa4) 40... Ne6 $1 $14 {[%emt 0:00:24]} 41. Qe4 {[%emt 0:00:55]} Qxe4 {[%emt 0:00:22]} 42. Rxe4 {[%emt 0:00:19][%mdl 4096] Endgame. KRB-KBN} Be3+ {[%emt 0:00:49]} 43. Kf1 {[%emt 0:00:13]} Bf4 {[%emt 0:00:28]} (43... Kf6 $16) 44. Re1 {[%emt 0:01:28]} (44. Re2 $1 $18) 44... Be3 {[%emt 0:00:23]} (44... Kf8 $16 45. Ke2 Ke7) 45. g3 {[%emt 0:18:25]} Kf6 {[%emt 0:00:28] [#]} 46. Ke2 {[%emt 0:00:00]} (46. Re2 $1 $18) 46... Ke7 {[%emt 0:00:12]} 47. Kd3 {[%emt 0:00:00]} (47. Ra1 $16) 47... Kd6 {[%emt 0:00:01]} 48. Rf1 {[%emt 0:00:00]} Kd5 {[%emt 0:00:18]} 49. h4 {[%emt 0:00:00]} h5 {[%emt 0:00:11]} 50. b3 {[%emt 0:00:00]} Ng7 {[%emt 0:00:56]} 51. Rh1 {[%emt 0:00:00] White wants to play Rh2.} Nf5 {[%emt 0:00:39]} (51... Bf2 $1 $11) 52. Rh3 {[%emt 0:00:00]} ({White should try} 52. Rh2 $1 $14) 52... Bf2 $11 {[%emt 0:01:00]} 53. g4 {[%emt 0:00:00]} Ng7 {[%emt 0:00:46]} 54. Rh2 {[%emt 0:00:00]} Be3 {[%emt 0:00:19]} 55. Rc2 {[%emt 0:00:00]} Ne6 {[%emt 0:00:24][%cal Re6f4] Dodges Rc5+} 56. Rc8 {[%emt 0:00:00]} hxg4 {[%emt 0:00:31]} 57. fxg4 {[%emt 0:00:00]} Bf2 {[%emt 0:00:39]} 58. Rh8 {[%emt 0:00:00]} e4+ {[%emt 0:00:29]} 59. Ke2 {[%emt 0:00:01]} Bg3 {[%emt 0:00:30] And now ...Nf4+ would win.} 60. Kf1 {[%emt 0:01:21]} e3 {[%emt 0:00:31]} 61. h5 $132 {[%emt 0:01:27][%mdl 2048] White is fighting back} gxh5 {[%emt 0:00:22]} 62. gxh5 {[%emt 0:00:16]} Nf4 {[%emt 0:00:14] ( -> ...e2+)} 63. Re8 $1 {[%emt 0:00:24]} (63. Rd8+ $2 Ke4 64. Re8+ (64. Rxd4+ $2 Kf3 $19) 64... Kf3 (64... Kd3 $2 65. h6 $19) 65. Bxd4 e2+ $19 (65... Nxh5 $2 66. Rxe3+ Kg4 67. Re7 $18) (65... Nxh5 $2 66. Rxe3+ Kg4 67. Re7 $18)) 63... Nxh5 {[%emt 0:00:28] Strongly threatening ...Be5.} 64. Ke2 $2 {[%emt 0:02:11] [#]} (64. Rd8+ $1 $11 Ke4 (64... Bd6 65. Bxd4 Ng3+ 66. Kg2 $16) 65. Bxd4 (65. Rxd4+ $2 Kf3 $19)) 64... Be5 $2 {[%emt 0:00:52]} (64... Bd6 $1 $19 {Threatens to win with ...Nf4+.} 65. Rd8 Ng3+ 66. Kd3 e2) 65. Kf3 {[%emt 0:00:13]} Nf6 {[%emt 0:01:05]} (65... Ng7 $11 {remains equal.} 66. Rd8+ Kc6) 66. Rd8+ $16 {[%emt 0:00:22]} Kc6 {[%emt 0:00:32]} ({Avoid the trap} 66... Bd6 $2 67. Bxd4 e2 68. Kxe2 $18 (68. Bxf6 $2 {is the wrong capture.} e1=Q $19)) 67. Bxd4 {[%emt 0:00:49]} Bxd4 {[%emt 0:00:14]} 68. Rxd4 {[%emt 0:00:04] KR-KN} Kc5 $2 {[%emt 0:00:35][%mdl 8192]} (68... Nd5 $16) 69. Kxe3 $18 {[%emt 0:01:02]} Nd5+ {[%emt 0:00:01]} 70. Ke4 {[%emt 0:00:16]} Nc3+ $2 {[%emt 0:01:03]} (70... Nc7 71. Ke5 Kc6 72. Rc4+ Kd7) 71. Kd3 $2 {[%emt 0:00:11]} (71. Ke5 {Intending Rc4+ and mate.} Kb5 72. Kd6) 71... Nd5 $2 {[%emt 0:00:17]} (71... Nb5 72. b4+ Kc6 73. Rc4+ Kd7) 72. Rh4 $2 {[%emt 0:00:20]} (72. Rc4+ Kb5 73. Re4) 72... Nb4+ {[%emt 0:00:30]} 73. Kc3 {[%emt 0:00:09]} Nd5+ {[%emt 0:00:51]} 74. Kb2 {[%emt 0:00:11]} Nb4 $2 {[%emt 0:00:11]} (74... Nc7 75. b4+ Kc6) 75. Ka3 {[%emt 0:00:28]} Nd5 {[%emt 0:00:24]} 76. Rh6 $2 {[%emt 0:01:13]} (76. b4+ Kc6 77. Kb3) 76... Nb4 $2 {[%emt 0:00:53]} (76... Nc3 $18 77. Rh5+ Kc6) 77. Rb6 {[%emt 0:00:28] White mates.} Nc6 {[%emt 0:00:31]} 78. b4+ {[%emt 0:00:31][%cal Bb3b4,Bb4b5][%mdl 32]} Kc4 {[%emt 0:00:10]} 79. Rxb7 {[%emt 0:00:12]} Nd4 {[%emt 0:00:13]} 80. Ka4 {[%emt 0:01:13]} Ne2 {[%emt 0:00:24]} 81. Rc7+ {[%emt 0:00:27]} Kd5 {[%emt 0:00:04]} 82. b5 {[%emt 0:00:11] Weighted Error Value: White=0.31/Black=0.30.  Loses game:     	White=1     	Black=3      Missed win:     	White=1     	Black=1      Mistake:       	White=6     	Black=11     Inaccurate:     	White=4     	Black=4      OK:         	White=23    	Black=23     Best:        	White=7     	Black=8      Strong:       	White=3     	Black=1} 1-0

[Event "46th Barbera del Valles Open-A 2024"]
[Site "Barbera del Valles"]
[Date "2024.07.07"]
[Round "4.2"]
[White "Bakshi, Rutuja"]
[Black "Diaz Perez, Michel Alejandro"]
[Result "1/2-1/2"]
[ECO "A13"]
[WhiteElo "2058"]
[BlackElo "2486"]
[Annotator "TA"]
[PlyCount "110"]
[EventDate "2024.06.25"]
[EventType "swiss"]
[EventCountry "ESP"]
[SourceTitle "playchess.com"]
[Source "ChessBase"]
[SourceQuality "1"]
[TimeControl "5400+30"]

{[%evp 13,110,0,0,0,-10,-7,0,0,14,-10,31,18,31,20,62,47,57,57,57,56,53,43,41,16,6,10,11,14,25,0,34,16,21,9,30,32,59,27,34,16,62,50,61,52,111,104,106,96,102,101,118,109,107,72,72,72,82,72,78,48,130,83,131,122,116,62,66,22,105,112,112,93,116,0,0,0,28,40,0,0,8,0,0,0,15,0,0,6,6,0,4,0,7,0,0,0,0,0,20]} 1. c4 {[%emt 0:00:03]} e6 {[%emt 0:00:27]} 2. Nf3 {[%emt 0:00:24]} Nf6 {[%emt 0:00:06]} 3. e3 {[%emt 0:00:11]} d5 {[%emt 0:00:28]} 4. b3 {[%emt 0:00:35]} b6 {[%emt 0:00:42]} 5. Bb2 {[%emt 0:00:08]} Bb7 {[%emt 0:00:19]} 6. Be2 {[%emt 0:00:56]} Nbd7 {[%emt 0:00:39]} 7. O-O {[%emt 0:01:27]} Bd6 {[%emt 0:00:35]} 8. d3 {[%emt 0:04:15]} O-O {[%emt 0:02:07]} 9. Nbd2 {[%emt 0:00:59]} Re8 {[%emt 0:01:24]} 10. Qc2 {[%emt 0:13:51]} Qe7 {[%emt 0:04:36]} 11. Rfd1 {[%emt 0:07:06]} Rad8 {[%emt 0:09:44]} 12. cxd5 {[%emt 0:07:32]} exd5 {[%emt 0:05:22]} 13. Nd4 {[%emt 0:03:06]} c5 {[%emt 0:05:36]} 14. Nf5 {[%emt 0:02:15]} Qe6 {[%emt 0:00:11]} 15. Nxd6 {[%emt 0:00:54]} Qxd6 {[%emt 0:00:03]} 16. d4 {[%emt 0:01:25]} Rc8 {[%emt 0:02:03]} 17. dxc5 {[%emt 0:05:34]} bxc5 {[%emt 0:00:58]} 18. Bf3 {[%emt 0:07:35][%cal Od2e4] This pair of bishops is nice.} Ne5 {[%emt 0:10:58]} 19. Bxe5 {[%emt 0:05:17]} Qxe5 {[%emt 0:00:11]} 20. Rac1 {[%emt 0:00:25]} h5 {[%emt 0:04:54]} 21. Qd3 {[%emt 0:05:42]} a6 {[%emt 0:06:10]} 22. Qe2 {[%emt 0:02:34]} Rc7 {[%emt 0:07:38]} 23. h3 {[%emt 0:02:44]} Bc8 {[%emt 0:01:21]} 24. Nf1 {[%emt 0:06:34]} h4 {[%emt 0:04:48]} 25. Rd2 {[%emt 0:02:08]} Qg5 {[%emt 0:03:59]} 26. Kh1 {[%emt 0:01:11]} Ne4 {[%emt 0:00:44]} (26... Re6 $11) 27. Bxe4 $14 {[%emt 0:04:21]} Rxe4 {[%emt 0:00:07]} 28. Rdc2 {[%emt 0:01:23]} d4 {[%emt 0:07:55] [#]} (28... Qe7 $14) 29. Nd2 $1 $16 {[%emt 0:01:58]} Ree7 {[%emt 0:03:21]} 30. Nf3 {[%emt 0:00:29][%csl LRd4,LRg5]} Qd5 {[%emt 0:00:44] [#]} 31. Nxd4 $1 {[%emt 0:03:11][%mdl 512] Hoping for Nf3.} Bxh3 {[%emt 0:02:04]} 32. Qf3 {[%emt 0:00:15]} (32. Qxa6 $2 Qxg2#) 32... Qd6 {[%emt 0:03:53]} 33. gxh3 {[%emt 0:01:44]} ({Much worse is} 33. Qxh3 $6 cxd4 34. Rxc7 (34. Qxh4 dxe3 35. Rxc7 Rxc7 $11) 34... Rxc7 35. Rxc7 Qxc7 36. exd4 (36. Qxh4 d3 $11) 36... Qc1+ 37. Kh2 Qf4+ 38. Kg1 Qc1+ 39. Kh2 Qf4+ 40. Kg1 Qc1+ 41. Kh2 $11) (33. Ne2 {keeps more tension.} Bc8 34. Qf4 Re5 35. Qxh4 Bf5 36. Rc3) 33... cxd4 {[%emt 0:00:02]} 34. Rxc7 {[%emt 0:00:26]} (34. Qa8+ {is interesting.} Kh7 35. Rxc7 Rxc7 36. Qe4+) 34... Rxc7 {[%emt 0:00:03]} 35. Rxc7 {[%emt 0:01:08]} Qxc7 {[%emt 0:00:04]} 36. exd4 {[%emt 0:00:02][%mdl 4096] Endgame. KQ-KQ} Qd8 {[%emt 0:03:35] Inhibits Qa8.} (36... Qc2 $14) 37. Qe4 {[%emt 0:01:33]} (37. d5 $142) 37... Qf6 {[%emt 0:02:22]} (37... Qa5 $142) 38. Kg2 {[%emt 0:00:15]} Qg5+ {[%emt 0:00:11]} 39. Kh2 {[%emt 0:00:43]} ({Better is} 39. Kf3 $16 {Qe8+ would now be deadly.} Qh5+ 40. Ke3) 39... Qf6 $14 {[%emt 0:00:09]} 40. Qe3 {[%emt 0:00:43]} a5 {[%emt 0:00:26] [#]} (40... Kf8 $11) 41. Qe8+ $1 $16 {[%emt 0:00:57]} Kh7 {[%emt 0:00:03]} 42. Qe4+ {[%emt 0:00:08]} Kg8 {[%emt 0:00:02]} 43. Qe3 {[%emt 0:01:57]} ({White should try} 43. Kg1 $16) 43... Kf8 $1 $11 {[%emt 0:03:02]} 44. Qd2 {[%emt 0:01:05][%cal Od4d5]} Qd6+ {[%emt 0:00:07]} 45. Kg2 {[%emt 0:01:04]} Qg6+ {[%emt 0:02:17]} 46. Kh2 {[%emt 0:01:26] The position is equal.} Qd6+ $1 {[%emt 0:00:05]} 47. Kg2 {[%emt 0:01:33]} Qg6+ {[%emt 0:00:02]} 48. Kh2 {[%emt 0:02:08]} Qd6+ $1 {[%emt 0:00:04]} 49. Kg2 {[%emt 0:00:15]} Qg6+ {[%emt 0:00:04]} 50. Kh1 {[%emt 0:00:50]} Qf5 {[%emt 0:04:51]} 51. Kh2 {[%emt 0:00:26]} Ke7 $1 {[%emt 0:02:35]} 52. Kg2 {[%emt 0:00:40]} Qg6+ {[%emt 0:00:51]} 53. Kh2 {[%emt 0:00:06]} Qf5 {[%emt 0:00:04]} 54. Kg2 {[%emt 0:00:18]} Qg6+ {[%emt 0:00:02]} 55. Kh2 {[%emt 0:01:13]} Qf5 {[%emt 0:00:01] Weighted Error Value: White=0.11 (very precise) /Black=0.15 (very precise) .  Mistake:       	White=3     	Black=5      Inaccurate:     	White=4     	Black=5      OK:         	White=18    	Black=17     Best:        	White=2     	Black=2      Strong:       	White=2     	Black=4} 1/2-1/2

[Event "46th Barbera del Valles Open-A 2024"]
[Site "Barbera del Valles"]
[Date "2024.07.07"]
[Round "4.3"]
[White "Alsina Leal, Daniel"]
[Black "Vedant Rupeshbhai Varasada"]
[Result "1-0"]
[ECO "B53"]
[WhiteElo "2512"]
[BlackElo "1860"]
[Annotator "TA"]
[PlyCount "65"]
[EventDate "2024.06.25"]
[EventType "swiss"]
[EventCountry "ESP"]
[SourceTitle "playchess.com"]
[Source "ChessBase"]
[SourceQuality "1"]
[TimeControl "5400+30"]

{[%evp 9,65,5,13,0,8,0,2,0,14,-10,24,8,25,25,29,37,46,27,69,0,0,0,0,0,15,0,0,-7,72,71,59,70,325,309,343,323,339,339,379,364,466,441,422,382,480,475,658,643,628,634,587,437,699,685,673,661,1258,964]} 1. e4 {[%emt 0:00:03]} c5 {[%emt 0:00:07]} 2. Nf3 {[%emt 0:00:06]} d6 {[%emt 0:00:05]} 3. d4 {[%emt 0:00:09]} cxd4 {[%emt 0:00:05]} 4. Qxd4 {[%emt 0:00:06]} Nc6 {[%emt 0:00:39]} 5. Qe3 {[%emt 0:00:19]} Nf6 {[%emt 0:00:57][%cal Bg8f6,Bf6d7,Bd7c5][%mdl 32]} 6. Nc3 {[%emt 0:00:24]} g6 {[%emt 0:02:39]} 7. h3 {[%emt 0:01:00]} Bg7 {[%emt 0:00:07]} 8. Bc4 {[%emt 0:00:13] The position is equal.} O-O {[%emt 0:03:27]} 9. O-O {[%emt 0:00:11]} Nd7 {[%emt 0:05:50]} 10. Rd1 {[%emt 0:03:56]} Nc5 {[%emt 0:05:29]} 11. Qe1 {[%emt 0:15:32]} Be6 {[%emt 0:27:55]} 12. Nd5 {[%emt 0:03:18]} Qd7 {[%emt 0:11:08]} 13. c3 {[%emt 0:09:54]} Rab8 {[%emt 0:06:23]} 14. Bf4 {[%emt 0:05:32]} (14. a4 $14) 14... b5 $11 {[%emt 0:01:39]} 15. Bf1 {[%emt 0:02:40][%cal Od5e7] [#] aiming for Nxe7+!} Qb7 {[%emt 0:05:33]} 16. Qe3 {[%emt 0:14:14]} Rfd8 {[%emt 0:11:17]} 17. Rd2 {[%emt 0:03:09]} a5 {[%emt 0:01:49]} 18. Rad1 {[%emt 0:01:13][%cal Od5e7]} a4 {[%emt 0:02:08] [#]} (18... Rbc8 $11 {keeps the balance.}) 19. Nxe7+ $1 $16 {[%emt 0:18:53]} Nxe7 {[%emt 0:00:06]} (19... Qxe7 $2 {perishes.} 20. Bxd6 (20. Rxd6 Nb7 $15) 20... Qa7 (20... Rxd6 $2 21. Rxd6 Ne5 22. Nxe5 $18) 21. Bxc5 $18 (21. Qxc5 Qxc5 22. Bxc5 Rxd2 $16)) 20. Qxc5 {[%emt 0:01:41]} Rbc8 $2 {[%emt 0:06:40][%mdl 8192] A mistake that costs the game.} (20... dxc5 $14 21. Rxd8+ Rxd8 22. Rxd8+ Bf8) 21. Qxb5 $18 {[%emt 0:01:53]} Qxe4 {[%emt 0:00:04]} 22. Bxd6 {[%emt 0:01:31]} ({Don't do} 22. Rxd6 Rxd6 23. Bxd6 Nf5) 22... Nf5 {[%emt 0:00:32][%cal Of5d6]} 23. Ng5 {[%emt 0:01:50]} Qh4 {[%emt 0:01:04]} 24. Nxe6 {[%emt 0:01:16]} fxe6 {[%emt 0:00:01]} 25. Be5 {[%emt 0:03:03]} Rf8 {[%emt 0:04:24]} 26. g3 {[%emt 0:01:58]} Qh6 {[%emt 0:01:02]} 27. Bxg7 {[%emt 0:02:56] White is clearly winning.} Kxg7 {[%emt 0:00:06]} 28. Qe5+ {[%emt 0:00:37]} Kg8 {[%emt 0:01:30]} 29. Qxe6+ {[%emt 0:00:11]} Kh8 {[%emt 0:00:04]} 30. Qe5+ {[%emt 0:00:38]} Ng7 {[%emt 0:00:06]} (30... Qg7 $142 31. Qa5 Qe7 32. Qxa4 Qc5) 31. Rd7 {[%emt 0:03:44]} Rce8 {[%emt 0:00:27]} 32. Qd4 {[%emt 0:00:08]} Rb8 {[%emt 0:00:04]} 33. c4 {[%emt 0:00:51] Weighted Error Value: White=0.14 (very precise) /Black=0.51.  Loses game:     	---       	Black=1      Mistake:       	White=1     	Black=1      Inaccurate:     	---       	Black=3      OK:         	White=14    	Black=7      Best:        	---       	Black=1} 1-0

[Event "46th Barbera del Valles Open-A 2024"]
[Site "Barbera del Valles"]
[Date "2024.07.07"]
[Round "4.4"]
[White "Bogdanov, Artyom"]
[Black "Escobar Forero, Alder"]
[Result "1/2-1/2"]
[ECO "B44"]
[WhiteElo "2265"]
[BlackElo "2426"]
[Annotator "RC"]
[PlyCount "57"]
[EventDate "2024.06.25"]
[EventType "swiss"]
[EventCountry "ESP"]
[SourceTitle "playchess.com"]
[Source "ChessBase"]
[SourceQuality "1"]
[TimeControl "5400+30"]

1. e4 {[%emt 0:00:03]} c5 {[%emt 0:00:12]} 2. Nf3 {[%emt 0:00:04]} e6 {[%emt 0:00:05]} 3. d4 {[%emt 0:00:08]} cxd4 {[%emt 0:00:07]} 4. Nxd4 {[%emt 0:00:03]} Nc6 {[%emt 0:00:06]} 5. Nb5 {[%emt 0:00:55]} d6 {[%emt 0:05:51]} 6. c4 {[%emt 0:00:13]} Nf6 {[%emt 0:00:43]} 7. N1c3 {[%emt 0:00:16]} a6 {[%emt 0:00:54]} 8. Nd4 {[%emt 0:01:18]} Be7 {[%emt 0:00:08]} 9. Be2 {[%emt 0:00:27]} O-O {[%emt 0:00:08]} 10. O-O {[%emt 0:00:31]} Bd7 {[%emt 0:02:43]} 11. Be3 {[%emt 0:04:16]} Qb8 {[%emt 0:11:28]} 12. a4 {[%emt 0:06:14]} Nxd4 {[%emt 0:06:33]} 13. Qxd4 {[%emt 0:03:10]} a5 {[%emt 0:00:18]} 14. Rfd1 {[%emt 0:11:25]} Bc6 {[%emt 0:01:21]} 15. f3 {[%emt 0:01:52]} Nd7 {[%emt 0:05:41]} 16. Qd2 {[%emt 0:20:28]} Nc5 {[%emt 0:04:22]} 17. Qc2 {[%emt 0:01:32]} f5 {[%emt 0:23:48]} 18. exf5 {[%emt 0:08:00]} Rxf5 {[%emt 0:00:06]} 19. Ne4 {[%emt 0:08:59]} Nxe4 {[%emt 0:16:24]} 20. fxe4 {[%emt 0:00:08]} Re5 {[%emt 0:00:10]} 21. Bf3 {[%emt 0:02:54]} Qf8 {[%emt 0:03:06]} 22. Rf1 {[%emt 0:03:49]} Qf7 {[%emt 0:04:28]} 23. Bd4 {[%emt 0:00:30]} Rg5 {[%emt 0:00:06]} 24. Be3 {[%emt 0:00:07]} Re5 {[%emt 0:00:06]} 25. Rae1 {[%emt 0:08:55]} Qg6 {[%emt 0:02:55]} 26. Bf4 {[%emt 0:00:15]} Rc5 {[%emt 0:00:02]} 27. Be3 {[%emt 0:01:25]} Re5 {[%emt 0:00:05]} 28. Bf4 {[%emt 0:05:32]} Rc5 {[%emt 0:00:08]} 29. Be3 {[%emt 0:02:10]} 1/2-1/2

[Event "46th Barbera del Valles Open-A 2024"]
[Site "Barbera del Valles"]
[Date "2024.07.07"]
[Round "4.5"]
[White "Valenzuela Gomez, Fernando"]
[Black "Salinas Tomas, Daniel"]
[Result "0-1"]
[ECO "E11"]
[WhiteElo "2358"]
[BlackElo "2355"]
[Annotator "TA"]
[PlyCount "58"]
[EventDate "2024.06.25"]
[EventType "swiss"]
[EventCountry "ESP"]
[SourceTitle "playchess.com"]
[Source "ChessBase"]
[SourceQuality "1"]
[TimeControl "5400+30"]

{[%evp 13,58,2,27,19,33,25,31,12,35,29,37,33,57,33,41,31,49,44,38,19,65,58,177,159,235,248,268,227,237,162,143,152,161,149,164,133,151,0,0,0,0,0,0,-444,-453,-480,-469]} 1. d4 {[%emt 0:06:05]} Nf6 {[%emt 0:00:06]} 2. c4 {[%emt 0:00:05]} e6 {[%emt 0:00:03]} 3. Nf3 {[%emt 0:00:05]} Bb4+ {[%emt 0:00:29]} 4. Bd2 {[%emt 0:00:11]} Qe7 {[%emt 0:00:06]} 5. e3 {[%emt 0:04:57]} O-O {[%emt 0:00:55]} 6. Bd3 {[%emt 0:01:21]} Bxd2+ {[%emt 0:00:46]} 7. Qxd2 {[%emt 0:00:58]} d6 {[%emt 0:00:16]} 8. Nc3 {[%emt 0:06:34]} e5 {[%emt 0:00:26] [#] White must now prevent ...e4.} 9. Bc2 {[%emt 0:06:39]} Bg4 {[%emt 0:02:10]} 10. O-O-O {[%emt 0:07:46] White is slightly better.} a5 {[%emt 0:07:03]} 11. h3 {[%emt 0:06:35]} Bxf3 {[%emt 0:01:03]} 12. gxf3 {[%emt 0:00:02]} Nc6 {[%emt 0:00:55]} 13. Rhg1 {[%emt 0:01:10]} Nb4 {[%emt 0:05:04]} 14. Bb1 {[%emt 0:00:46]} Qe6 {[%emt 0:00:26][%csl LRc4,LRh3]} 15. d5 {[%emt 0:05:44]} Qe7 {[%emt 0:07:05]} 16. Rg5 {[%emt 0:03:35]} Rfc8 {[%emt 0:06:40]} (16... Kh8 $11) 17. Rdg1 $14 {[%emt 0:00:59]} Ne8 {[%emt 0:07:28] Black is weak on the light squares} (17... g6 $14) 18. f4 $36 {[%emt 0:14:14][%mdl 2048] White is on the roll.} exf4 {[%emt 0:18:15]} (18... Kh8 $16 19. fxe5 dxe5) 19. exf4 $18 {[%emt 0:06:48]} c6 {[%emt 0:01:13]} 20. a3 {[%emt 0:04:33]} Na6 {[%emt 0:00:21][%cal Bb4a6,Ba6c5,Bc5e6,Be6f4][%mdl 32]} 21. dxc6 {[%emt 0:00:21]} bxc6 {[%emt 0:01:38]} 22. Qc2 {[%emt 0:02:49]} g6 {[%emt 0:00:40] [#]} 23. f5 $1 {[%emt 0:00:37][%cal Rf5g6] Threatens to win with fxg6.} (23. Rxa5 $6 Nc5 24. Rxa8 Rxa8 $14) 23... Ng7 {[%emt 0:01:09]} 24. Qd1 {[%emt 0:03:09][%cal Rf5g6] Strongly threatening fxg6.} Nc5 {[%emt 0:04:50]} 25. Bc2 $2 {[%emt 0:02:42]} (25. fxg6 $16 hxg6 26. R5g3) 25... Rab8 $11 {[%emt 0:00:21]} 26. fxg6 {[%emt 0:01:41]} hxg6 {[%emt 0:00:01]} 27. Bxg6 {[%emt 0:03:20]} Nce6 $1 {[%emt 0:01:27] A dynamic duo of knights.} (27... fxg6 $2 {is the wrong capture.} 28. Rxg6 Rd8 (28... Nce6 $2 29. Qg4 $18) 29. Rxg7+ Qxg7 30. Rxg7+ Kxg7 31. Ne2 $18 (31. Qg4+ Kh8 $18)) 28. Rh5 {[%emt 0:02:46][%mdl 8192]} fxg6 $19 {[%emt 0:00:55]} (28... Nxh5 $2 {too greedy.} 29. Bh7+ Kh8 30. Qxh5 $18) 29. Rxg6 {[%emt 0:01:25][%cal Oh5h6]} Nf4 {[%emt 0:01:54][%csl LRg6,LRh5] Weighted Error Value: White=0.50/Black=0.19 (very precise) .  Loses game:     	White=1     	---        Mistake:       	White=1     	Black=3      Inaccurate:     	White=1     	---        OK:         	White=7     	Black=5      Best:        	---       	Black=3      Strong:       	White=1     	Black=1} 0-1